Cogmind - Beta 15 @@@ ROGUE MODE // 2025.08.06 @ 21:01:49 Player: Endlessblaze Result: Destroyed self with Subdweller Shrapnel Launcher Performance ------------- Evolutions (0) 0 Regions Visited (2) 400 Robots Destroyed (16) 80 Value Destroyed (420) 420 Prototype IDs (0) 0 Alien Tech Used (0) 0 Bonus (-48) -48 TOTAL SCORE: 852 Bonus ------- Friendly Fire -48 Cogmind --------- Core Integrity 0/250 Matter 61/300 Energy 180/200 System Corruption 0% Temperature Cool (6) Movement Rolling (110) Location -10/Subcaves Parts ------- > --- POWER (1) -------- Subdweller Power Source > --- PROPULSION (2) --- Subdweller Monowheel Subdweller Monowheel > --- UTILITY (2) ------ (None) > --- WEAPON (2) ------- Subdweller Shrapnel Launcher Flamer > --- INVENTORY (5) ---- Spiked Treads High-capacity Battery (250) Cobbler Unit Subdweller Beam Cannon Peak State ------------ > --- POWER ------------ Light Angular Momentum Engine > --- PROPULSION ------- Subdweller Monowheel Subdweller Monowheel > --- UTILITY ---------- Cobbler Unit > --- WEAPON ----------- Subdweller Beam Cannon Subdweller Shrapnel Launcher > --- INVENTORY -------- High-capacity Battery High-capacity Matter Pod Scrap Shield Flamer [Rating: 17] Favorites ----------- Power Subdweller Power Source Engine Subdweller Power Source Propulsion Aluminum Leg Treads Spiked Treads Leg Aluminum Leg Wheel Subdweller Monowheel Utility Scrap Shield Device Improved Terrain Scanner Storage Small Storage Unit Protection Scrap Shield Weapon Assault Rifle Energy Gun Subdweller Laser Energy Cannon Subdweller Beam Cannon Ballistic Gun Assault Rifle Launcher Subdweller Shrapnel Launcher Special Weapon Flamer Build | -11 -10 -10 ------- Run | Yrd Mat Sub Slots Evolved . | . . . Power . | . . . Propulsion . | . . . Utility . | . . . Weapon . | . . . Parts Attached 29 | 7 . 22 Power 4 | 1 . 3 Engine 4 | 1 . 3 Core . | . . . Reactor . | . . . Propulsion 7 | 2 . 5 Treads 1 | . . 1 Leg 2 | 2 . . Wheel 4 | . . 4 Hover . | . . . Flight . | . . . Utility 7 | 2 . 5 Device 4 | 1 . 3 Storage 1 | 1 . . Processor . | . . . Hackware . | . . . Protection 2 | . . 2 Artifact . | . . . Weapon 11 | 2 . 9 Energy Gun 1 | . . 1 Energy Cannon 2 | . . 2 Ballistic Gun 2 | 2 . . Ballistic Cannon . | . . . Launcher 3 | . . 3 Special Weapon 3 | . . 3 Impact Weapon . | . . . Slashing Weapon . | . . . Piercing Weapon . | . . . Special Melee Weapon . | . . . Unidentified Prototypes . | . . . Parts Lost 10 | . . 10 Power 2 | . . 2 Propulsion 2 | . . 2 Utility 3 | . . 3 Weapon 3 | . . 3 Highest Loss Streak 2 | . . 2 To Critical Strikes . | . . . Average Backups 4 | 3 7 4 Power . | . . . Propulsion . | 1 1 . Utility 2 | . 3 2 Weapon 1 | . 1 1 Tool/Special . | . . . Unused Backups 11 | 1 3 7 Power 1 | . 1 . Propulsion 2 | . 2 . Utility 7 | 1 . 6 Weapon 1 | . . 1 Tool/Special . | . . . Average Slot Usage (%) 80 | . 100 75 Engine 13 | . 14 12 Leg 10 | . 28 6 Wheel 10 | . . 13 Device 9 | . 14 8 Storage 2 | . 14 . Protection 4 | . . 5 Energy Cannon 6 | . . 8 Ballistic Gun 8 | . 28 3 Launcher 4 | . . 5 Special Weapon 6 | . . 8 Peak Build Rating 17 | 9 10 17 Average Rating 11 | 6 9 12 On Entrance 6 | . 9 10 Naked Turns . | . . . Heaviest Build 37 | 15 15 37 Greatest Support 40 | 20 20 40 Greatest Overweight (x) 10 | 2 . 10 Average Overweight (x) . | . . . Largest Inventory Capacity 8 | 8 8 8 Average Capacity 5 | 7 8 5 Most Carried 8 | 6 8 8 Average Carried 5 | 3 7 4 Final Capacity 8 | 8 8 5 Final Carried 8 | 6 8 5 Class Distribution -------------------- 62% | Mutant 13% | Cobbler-Mutant 12% | Subdweller-Mutant 8% | Scavenger-Mutant 3% | Derelict-Mutant Dominant Class ---------------- Mutant | -10/Materials Mutant | -10/Subcaves Resources | -11 -10 -10 ----------- Run | Yrd Mat Sub Matter Collected 1462 | 324 44 1094 Remotely 311 | . . 311 Salvage Created 378 | 154 132 92 Parts 28 | 17 8 3 Haulers Intercepted . | . . . Recyclers Shooed . | . . . Parts Field Recycled . | . . . Retrieved Matter . | . . . Parts Self-Destructed 4 | . . 4 Prevented . | . . . Kills | -11 -10 -10 ------- Run | Yrd Mat Sub Combat Hostiles Destroyed 10 | . 3 7 Guns 3 | . 3 . Cannons 4 | . . 4 AOE 3 | . . 3 Classes Destroyed 8 | 2 2 4 Tunneler 4 | 4 . . Recycler 1 | 1 . . Operator 1 | . 1 . Swarmer 1 | . . 1 Grunt 3 | . 3 . Sentry 1 | . . 1 Artisan 1 | . . 1 Subdweller 5 | . . 5 Best Kill Streak 3 | 3 1 2 Combat Bots Only 2 | . 1 2 Max Kills in Single Turn 1 | 1 1 1 Gunslinging . | . . . Exploded 1 | . . 1 Melee . | . . . Uniques/NPCs Destroyed . | . . . Combat | -11 -10 -10 -------- Run | Yrd Mat Sub Hostile Shots Fired 93 | . 17 76 Missed 28 | . 5 23 Hits 65 | . 12 53 Projectile 65 | . 12 53 AOE 3 | . . 3 Critical Strikes 3 | . . 3 Damage Taken 1596 | . 155 1441 Core 252 | . 49 203 Absorbed by Shields . | . . . Core Remaining (%) 100 | 100 . . Volleys Fired 87 | 13 21 53 Largest 2 | 2 2 2 Hottest 180 | 40 40 180 Shots Fired 147 | 26 42 79 Gun 82 | 26 42 14 Cannon 18 | . . 18 Launcher 28 | . . 28 Special 19 | . . 19 Kinetic 97 | 26 42 29 Thermal 37 | . . 37 Explosive 13 | . . 13 Electromagnetic . | . . . Robot Hit Streak 25 | 7 6 25 Robot Miss Streak 6 | 3 6 3 Penetration Max . | . . . Secondary Targets 1 | . 1 . Max Gunslinging Chain 1 | . 1 . Shots Hit Robots 86 | 17 24 45 Core Hits 34 | 6 8 20 Critical Kills . | . . . Critical Parts Destroyed . | . . . Critical Strikes 2 | . . 2 Burn 2 | . . 2 Melee Attacks . | . . . Impact . | . . . Slashing . | . . . Piercing . | . . . Sneak Attacks . | . . . Combat Hostiles . | . . . Follow-up Attacks . | . . . Damage Inflicted 1644 | 214 303 1127 Guns 693 | 214 303 176 Cannons 221 | . . 221 Explosions 527 | . . 527 Melee . | . . . Ramming . | . . . Kinetic 938 | 214 303 421 Thermal 424 | . . 424 Explosive 282 | . . 282 Electromagnetic . | . . . Impact . | . . . Slashing . | . . . Piercing . | . . . Highest Corruption . | . . . Average Corruption . | . . . Corruption Purged . | . . . Corruption Blocked . | . . . Overload Shots . | . . . Overflow Damage 18 | . . 18 Projectiles . | . . . Explosions 18 | . . 18 Melee . | . . . Knockbacks . | . . . Impact . | . . . Kinetic . | . . . Secondary . | . . . Self-Inflicted Damage 204 | . . 204 Shots 8 | . . 8 Rammed . | . . . Targets Rammed . | . . . Kicked . | . . . Crushed . | . . . Highest Temperature 81 | . 2 81 Average Temperature 24 | . 2 26 Received Heat Transfer 147 | . 87 60 Siege Activations . | . . . Martial Activations . | . . . Shielding Activations . | . . . Robots Disrupted 2 | . . 2 Combat Hostiles 2 | . . 2 Robots Corrupted . | . . . Combat Hostiles . | . . . Parts Fried . | . . . Impact Corruptions . | . . . Robots Melted . | . . . Combat Hostiles . | . . . Parts Melted . | . . . Heat Transferred 2056 | . . 2056 Parts Sabotaged . | . . . Parts Stolen . | . . . Parts Stripped . | . . . Power Chain Reactions . | . . . Alert | -11 -10 -10 ------- Run | Yrd Mat Sub Maximum Alert Level . | . . . Low Security (%) 100 | 100 100 . Level 1 . | . . . Level 2 . | . . . Level 3 . | . . . Level 4 . | . . . Level 5 . | . . . High Security . | . . . Max Security . | . . . Peak Influence 40 | 10 40 . Initial . | . . . Average 3 | . 5 . Influence Increases 182 | 25 87 70 Destroy 0b10 Robot/C 100 | . 60 40 Destroy 0b10 Robot/NC 30 | 25 5 . Destroy Leader 10 | . 10 . Successful Hack 12 | . 12 . Lose Combat Pursuer 30 | . . 30 Influence Decreases 182 | 25 87 70 Time Decay 180 | 25 87 68 Lost Part 2 | . . 2 Squads Dispatched . | . . . Investigation . | . . . Extermination . | . . . Reinforcement . | . . . Assault . | . . . Garrison . | . . . Intercept . | . . . Searches Triggered . | . . . Construction Impeded . | . . . Haulers Reinforced . | . . . Active Scanning Responses . | . . . Cargo Convoy Interrupts . | . . . Stealth | -11 -10 -10 --------- Run | Yrd Mat Sub Distress Signals . | . . . Communications Jammed . | . . . Distress Signals . | . . . Times Spotted 27 | . 6 21 Peak Tracking Total 8 | . 2 8 Tactical Retreats 2 | . . 2 Traps | -11 -10 -10 ------- Run | Yrd Mat Sub Traps Triggered . | . . . Indirectly . | . . . Trap Hack Attempts . | . . . Triggered . | . . . Disarmed . | . . . Reprogrammed . | . . . Reused . | . . . Traps Extracted . | . . . Installed . | . . . Triggered . | . . . Machines | -11 -10 -10 ---------- Run | Yrd Mat Sub Machines Disabled . | . . . Max in Single Turn . | . . . Machines Repaired . | . . . Machines Dismantled . | . . . Machines Sabotaged . | . . . Overloaded Fab Kills . | . . . Hacking | -11 -10 -10 --------- Run | Yrd Mat Sub Machines Accessed 3 | . 3 . Terminals 3 | . 3 . Fabricators . | . . . Repair Stations . | . . . Recycling Units . | . . . Scanalyzers . | . . . Garrison Access . | . . . Total Hacks 11 | . 11 . Successful 8 | . 8 . Failed 3 | . 3 . Catastrophic . | . . . Database Lockouts . | . . . Manual 6 | . 6 . Terminals 11 | . 11 . Fabricators . | . . . Repair Stations . | . . . Recycling Units . | . . . Scanalyzers . | . . . Garrison Access . | . . . Terminal Hacks 5 | . 5 . Record 4 | . 4 . Dispatch Records 1 | . 1 . Fabricator Hacks . | . . . Repair Station Hacks . | . . . Recycling Unit Hacks . | . . . Scanalyzer . | . . . Garrison Access Hacks . | . . . Unauthorized Hacks 3 | . 3 . Terminals 3 | . 3 . Botnet 3 | . 3 . Fabricators . | . . . Repair Stations . | . . . Recycling Units . | . . . Scanalyzers . | . . . Garrison Access . | . . . Data Cores Recovered 1 | . 1 . Used . | . . . Hacking Detections 2 | . 2 . Full Trace Events . | . . . Feedback Events . | . . . Feedback Blocked . | . . . Robot Schematics Acquired . | . . . Robots Built . | . . . Authchips . | . . . Time . | . . . Total Robot Build Rating . | . . . Part Schematics Acquired . | . . . Parts Built . | . . . Authchips . | . . . Time . | . . . Total Part Build Rating . | . . . Parts Repaired . | . . . Time . | . . . Parts Recycled . | . . . Recycled Matter . | . . . Retrieved Matter . | . . . Retrieved Components . | . . . Parts Scanalyzed . | . . . Part Schematics Acquired . | . . . Parts Damaged . | . . . Bothacking | -11 -10 -10 ------------ Run | Yrd Mat Sub Used RIF Installer . | . . . Robots Hacked . | . . . Non-combat . | . . . Combat . | . . . Robot Hacks Applied . | . . . Relay Couplers Released . | . . . Fabnet Peak Effective % . | . . . Robots Rewired . | . . . Allies Hacked . | . . . Hacks Repelled . | . . . Allies | -11 -10 -10 -------- Run | Yrd Mat Sub Total Allies . | . . . Largest Group . | . . . Highest-Rated Group . | . . . Highest-Rated Ally . | . . . Total Orders . | . . . Ally Attacks . | . . . Total Damage . | . . . Kills . | . . . Allies Corrupted . | . . . Allies Melted . | . . . Intel | -11 -10 -10 ------- Run | Yrd Mat Sub Active Infowar (turns) 1088 | 47 527 514 Optics 508 | . . 508 Terrain 580 | 47 527 6 Robot Analysis Total . | . . . Derelict Logs Recovered 1 | . . 1 Drone Launches . | . . . Drone Recoveries . | . . . Exploration | -11 -10 -10 ------------- Run | Yrd Mat Sub Turns Passed 2921 | 232 527 2162 Spaces Moved 1829 | 151 381 1297 Core 78 | 36 . 42 Treads 2 | . . 2 Legs 741 | 115 381 245 Wheels 1008 | . . 1008 Hover . | . . . Flight . | . . . Fastest Speed 50 | 50 120 110 Average Speed 128 | 116 120 132 Slowest Speed 550 | 150 120 550 Overloaded Moves . | . . . Propulsion Burnouts . | . . . Robots Hopped . | . . . Potential Cave-ins . | . . . Cave-ins Triggered . | . . . Exploration Rate (%) 27 | 8 39 36 Regions Visited 2 Branch Regions 1 Pre-discovered Areas . | . . . Known Exits Taken . | . . . Unknown Exits Taken 2 | 1 1 . Scrap Searched 3 | . . 3 Spaces Dug . | . . . Terrain Destroyed 228 | . . 228 Melee . | . . . Projectile 4 | . . 4 AOE 224 | . . 224 Terrain Rammed . | . . . Walls Destroyed . | . . . Machines Disabled . | . . . Actions | -11 -10 -10 --------- Run | Yrd Mat Sub Total 2234 | 179 410 1645 Wait 232 | . 1 231 Move 1827 | 150 380 1297 Hop . | . . . Pick Up 22 | 8 5 9 Fast Attach 18 | 6 . 12 Attach 6 | 1 . 5 Detach . | . . . Swap 11 | . . 11 Drop 26 | 1 3 22 Fire 87 | 13 21 53 Melee . | . . . Ram . | . . . Kick . | . . . Crush . | . . . Escape Stasis . | . . . Rewire 4 | . . 4 Trap . | . . . Miscellaneous 1 | . . 1 Route ------- -11/Scrapyard -10/Materials (discovered 2 exits: [*Mat] / [*Sub]) -10/Subcaves (discovered 1 exit: [*Mat]) History --------- Turn | Location | Event 5 | -11/Scrapyard | Discovered new exit (range 15) 233 | -11/Scrapyard | Entered Materials 310 | -10/Materials | Build established: Mutant 591 | -10/Materials | Discovered new exit (range 4) 752 | -10/Materials | Discovered new exit (range 6) 760 | -10/Materials | Entered Subcaves 847 | -10/Subcaves | Ambushed by swarm of Subdwellers 851 | -10/Subcaves | Ambushed by Subdwellers from Twisted Machinery 851 | -10/Subcaves | Ambushed by Subdwellers from Twisted Machinery 911 | -10/Subcaves | Lost 3 allies 957 | -10/Subcaves | A swath of the cavern ceiling suddenly collapsed 992 | -10/Subcaves | Shifting Twisted Machinery released Sub. Beam Cannon 997 | -10/Subcaves | Shifting Twisted Machinery released Enh. Flamer 1152 | -10/Subcaves | Discovered new exit (range 14) 1807 | -10/Subcaves | Core integrity fell below 50% 2462 | -10/Subcaves | Build established: Cobbler-Mutant 2559 | -10/Subcaves | A swath of the cavern ceiling suddenly collapsed 2847 | -10/Subcaves | Build established: Subdweller-Mutant 2882 | -10/Subcaves | Ambushed by Subdweller buried in earth 2902 | -10/Subcaves | Core integrity fell below 20% 2922 | -10/Subcaves | Destroyed self with Subdweller Shrapnel Launcher Last Messages --------------- Acquired 7 matter. Acquired 15 matter. Dropped Sub. Power Source. Extracted 1 energy. Extracted 25 energy. Acquired 47 matter. Scrap Shield Fragment affixed to Scrap Shield (+17). Subatomizers dissect the Disposable Heat Sink. Acquired 12 matter. Subatomizers dissect the Disposable Heat Sink. Acquired Sub. Monowheel. QJ-I7S(R): "FREEEEDUMB!" 1V-06Q(R): "WEHOME!" 1V-06Q(R) shuts down. Attempting to rewire 1V-06Q(R). QJ-I7S(R) suffers critical hit (Burn). The unstable cave ceiling collapses. 1V-06Q(R) reactivates. Scrap Shield destroyed. Destroyed Scrap Shield. Map ----- +----------------------------------------------------+ | ????????????????????# #????????????????? | | ????????????????????## #????????????????? | | ?????????????????????# ###??????????????? | | ?????????????????????# #??????????????? | | ?????????????????????# #??????????????? | | ?????????????????????## ## #??????????????? | | ??????????????????????#### ##?????????????? | | ???????????????????????## #?????????????? | | ???????????????????????# #?????????????? | | ???????????????????????###! # #?????????????? | | ???????????????????????##; !""##?????????????? | | ???????????????????????# ;&!& "#??????????????? | | ???????????????????????##! & "#??????????????? | | ????????????????????????#;!&**##??????????????? | | ???????????????????????##; !!"##?????????????? | | ????###??????????????###;! #?????????????? | | ##??# #######????????# ; ""#?????????????? | | ##?# # # ###??????###; ## ##?????????????? | | ### ###??????## ##?###??????????????? | | ## ##&######## #???????????????????? | | ##& & &&!## #???????????????????? | | ######=&##### # ##??????????????????? | | ###????####???### ;##?????????????????? | | #######???????????????# # ; #?????????????????? | | #?????????????????????# ; #?????????????????? | | #?????????????????????#; @ ;#?????????????????? | | ??????????????????????#;RR ;#?????????????????? | | ?????????????????????# ; ##?????????????????? | | ?????????????????????##;; ??????????????????? | | ??????????????????????### ""?????????????????? | | ????????????????????????#"## #????????????????? | | ????????????????????????""#? ????????????????? | | ????????????????????????#" ? ???????????????? | | ????????????????????????"""?? ??????????????? | | ?????????????????????????""?? #??????????????? | | ????????????????????????? ???? #??????????????? | | ??????????????????????????????? ??????????????? | | ??????????????????????????????????????????????? | | ??????????????????????????????????????????????? | | ??????????????????????????????????????????????? | | ??????????????????????????????????????????????? | | ??????????????????????????????????????????????? | | ??????????????????????????????????????????????? | | ??????????????????????????????????????????????? | | ??????????????????????????????????????????????? | | ??????????????????????????????????????????????? | | ??????????????????????????????????????????????? | | ??????????????????????????????????????????????? | | ??????????????????????????????????????????????? | | ??????????????????????????????????????????????? | +----------------------------------------------------+ Best States ------------- Heat Dissipation 25 Energy Generation 18 Energy Capacity 250 Matter Stores 300 Matter Capacity 300 Sight Range 21 Terrain Scan Range 16 Terrain Scan Density 10 Armor Coverage 800 Evasion (%) 55 Recoil Reduction 1 Item Schematics ----------------- None Robot Schematics ------------------ None Fabricated ------------ Nothing Repaired ---------- Nothing Alien Tech Used ----------------- None Achievements -------------- None Challenges ------------ None Game ------ Seed ActuatorCompanionRedirector Manual? 0 Play Time 00:34:24 Cumulative 13.8 hours Start 2025.08.06 @ 20:20:22 End 2025.08.06 @ 21:01:49 Sessions 1 Manual Loads 0 Difficulty Rogue Special Mode None Game No. 17 Rogue 17 Adventurer 0 Explorer 0 Win Type - Total 0 Types 0/0/0/0/0/0/0/0/0/0 Lore% 12 Gallery% 17 Achievement% 20 Wizard Run 0 Options --------- Layout 1 ASCII 0 Keyboard 0 Movement Arrows Keybinds 0 Fullscreen 1 Font 16/SmallcapsGlow Map View 55x38 Zoom Use 0% Tactical HUD 0 Map Filters NONE Filters NONE Steam 1 RUN: 8697f3ca-d8b3-419f-b794-1f1cbdfed5a6